[Event "Amateur Tournament (ATO)"]
[Site "Biel, Switzerland"]
[Date "2026.07.20"]
[Round "6.1"]
[White "Aegerter, Fabrice"]
[Black "Jahn, Thomas"]
[Result "0-1"]
[TimeControl "90+30+30sec/move"]
[WhiteTitle "-"]
[BlackTitle "-"]
[WhiteFideId "1344854"]
[BlackFideId "34679430"]
[WhiteElo "1915"]
[BlackElo "1944"]

1. d4 {[%clk 01:30:55]} {[%emt 00:00:03]} d5 {[%clk 01:30:46]} {[%emt
00:00:15]} 2. Nf3 {[%clk 01:30:11]} {[%emt 00:01:14]} Nf6 {[%clk 01:30:59]}
{[%emt 00:00:17]} 3. c4 {[%clk 01:30:33]} {[%emt 00:00:08]} e6 {[%clk
01:31:18]} {[%emt 00:00:11]} 4. g3 {[%clk 01:30:56]} {[%emt 00:00:06]} Be7
{[%clk 01:31:02]} {[%emt 00:00:47]} 5. Bg2 {[%clk 01:31:18]} {[%emt 00:00:07]}
O-O {[%clk 01:31:19]} {[%emt 00:00:13]} 6. O-O {[%clk 01:31:36]} {[%emt
00:00:10]} dxc4 {[%clk 01:31:34]} {[%emt 00:00:17]} 7. Qc2 {[%clk 01:31:17]}
{[%emt 00:00:49]} a6 {[%clk 01:31:49]} {[%emt 00:00:16]} 8. Nbd2 {[%clk
01:18:33]} {[%emt 00:13:15]} b5 {[%clk 01:30:54]} {[%emt 00:01:25]} 9. a4
{[%clk 01:17:25]} {[%emt 00:01:37]} c6 {[%clk 01:30:25]} {[%emt 00:01:00]} 10.
b3 {[%clk 01:15:32]} {[%emt 00:02:22]} cxb3 {[%clk 01:24:53]} {[%emt 00:06:01]}
11. Nxb3 {[%clk 01:10:46]} {[%emt 00:05:16]} Nd5 {[%clk 01:25:11]} {[%emt
00:00:13]} 12. Bd2 {[%clk 01:05:46]} {[%emt 00:05:30]} Bb7 {[%clk 01:06:49]}
{[%emt 00:18:53]} 13. Na5 {[%clk 00:55:10]} {[%emt 00:11:05]} Ra7 {[%clk
00:55:39]} {[%emt 00:11:40]} 14. Rfb1 {[%clk 00:38:12]} {[%emt 00:17:28]} Qb6
{[%clk 00:47:44]} {[%emt 00:08:25]} 15. e4 {[%clk 00:33:22]} {[%emt 00:05:19]}
Nf6 {[%clk 00:44:36]} {[%emt 00:03:38]} 16. Nc4 {[%clk 00:31:56]} {[%emt
00:01:56]} Qd8 {[%clk 00:39:55]} {[%emt 00:05:11]} 17. Ba5 {[%clk 00:27:42]}
{[%emt 00:04:44]} Qe8 {[%clk 00:39:51]} {[%emt 00:00:35]} 18. Bb6 {[%clk
00:27:03]} {[%emt 00:01:09]} Ra8 {[%clk 00:40:12]} {[%emt 00:00:09]} 19. Na5
{[%clk 00:26:52]} {[%emt 00:00:42]} Nbd7 {[%clk 00:36:08]} {[%emt 00:04:33]} 20.
Nxb7 {[%clk 00:07:22]} {[%emt 00:20:00]} Nxb6 {[%clk 00:36:16]} {[%emt
00:00:22]} 21. e5 {[%clk 00:01:16]} {[%emt 00:06:37]} Nfd5 {[%clk 00:36:16]}
{[%emt 00:00:29]} 22. a5 {[%clk 00:00:50]} {[%emt 00:00:57]} Na4 {[%clk
00:35:11]} {[%emt 00:01:33]} 23. Rb3 {[%clk 00:00:44]} {[%emt 00:00:37]} Ra7
{[%clk 00:33:34]} {[%emt 00:02:06]} 24. Nd2 {[%clk 00:00:43]} {[%emt 00:00:32]}
Nac3 {[%clk 00:30:34]} {[%emt 00:03:29]} 25. Rxc3 {[%clk 00:00:42]} {[%emt
00:00:31]} Nxc3 {[%clk 00:30:57]} {[%emt 00:00:07]} 26. Qxc3 {[%clk 00:00:53]}
{[%emt 00:00:20]} Rxb7 {[%clk 00:31:21]} {[%emt 00:00:06]} 27. f4 {[%clk
00:00:52]} {[%emt 00:00:31]} Rc7 {[%clk 00:29:49]} {[%emt 00:02:02]} 28. Ne4
{[%clk 00:01:08]} {[%emt 00:00:14]} Qd8 {[%clk 00:23:17]} {[%emt 00:07:02]} 29.
Qe3 {[%clk 00:00:51]} {[%emt 00:00:47]} Rd7 {[%clk 00:23:26]} {[%emt 00:00:21]}
30. g4 {[%clk 00:00:41]} {[%emt 00:00:41]} Rxd4 {[%clk 00:23:33]} {[%emt
00:00:23]} 31. f5 {[%clk 00:00:50]} {[%emt 00:00:20]} Rd1+ {[%clk 00:22:12]}
{[%emt 00:01:51]} 32. Rxd1 {[%clk 00:00:59]} {[%emt 00:00:21]} Qxd1+ {[%clk
00:22:34]} {[%emt 00:00:08]} 33. Kf2 {[%clk 00:01:23]} {[%emt 00:00:06]} Qxg4
{[%clk 00:22:44]} {[%emt 00:00:20]} 34. Bh3 {[%clk 00:01:48]} {[%emt 00:00:05]}
Bh4+ {[%clk 00:21:55]} {[%emt 00:01:19]} 35. Kf1 {[%clk 00:01:58]} {[%emt
00:00:20]} Qd1+ {[%clk 00:22:03]} {[%emt 00:00:23]} 36. Kg2 {[%clk 00:02:12]}
{[%emt 00:00:14]} Rd8 {[%clk 00:21:30]} {[%emt 00:01:03]} 37. fxe6 {[%clk
00:02:10]} {[%emt 00:00:33]} Qc2+ {[%clk 00:21:45]} {[%emt 00:00:14]} 38. Kg1
{[%clk 00:01:37]} {[%emt 00:01:03]} Rd1+ {[%clk 00:21:49]} {[%emt 00:00:27]} 39.
Bf1 {[%clk 00:01:58]} {[%emt 00:00:09]} fxe6 {[%clk 00:21:07]} {[%emt
00:01:12]} 40. Qf3 {[%clk 00:01:24]} {[%emt 00:01:03]} Be7 {[%clk 00:17:48]}
{[%emt 00:03:49]} 0-1

[Event "Amateur Tournament (ATO)"]
[Site "Biel, Switzerland"]
[Date "2026.07.20"]
[Round "6.2"]
[White "Coletta, Julien"]
[Black "Alexakis, Dimitrios"]
[Result "0-1"]
[TimeControl "90+30+30sec/move"]
[WhiteTitle "-"]
[BlackTitle "-"]
[WhiteFideId "1342223"]
[BlackFideId "4200527"]
[WhiteElo "1889"]
[BlackElo "1959"]

1. e4 {[%clk 01:30:40]} {[%emt 00:00:19]} c5 {[%clk 01:30:46]} {[%emt
00:00:15]} 2. Nf3 {[%clk 01:31:02]} {[%emt 00:00:08]} d6 {[%clk 01:31:05]}
{[%emt 00:00:11]} 3. Bb5+ {[%clk 01:31:20]} {[%emt 00:00:12]} Nc6 {[%clk
01:31:10]} {[%emt 00:00:25]} 4. O-O {[%clk 01:28:43]} {[%emt 00:03:06]} Bd7
{[%clk 01:31:22]} {[%emt 00:00:18]} 5. Re1 {[%clk 01:27:51]} {[%emt 00:01:22]}
a6 {[%clk 01:31:41]} {[%emt 00:00:11]} 6. Bxc6 {[%clk 01:23:07]} {[%emt
00:05:14]} Bxc6 {[%clk 01:32:00]} {[%emt 00:00:12]} 7. d4 {[%clk 01:23:31]}
{[%emt 00:00:06]} cxd4 {[%clk 01:31:51]} {[%emt 00:00:39]} 8. Nxd4 {[%clk
01:23:52]} {[%emt 00:00:09]} Rc8 {[%clk 01:31:51]} {[%emt 00:00:29]} 9. c4
{[%clk 01:11:24]} {[%emt 00:12:58]} Nf6 {[%clk 01:31:18]} {[%emt 00:01:03]} 10.
Nxc6 {[%clk 01:09:47]} {[%emt 00:02:08]} Rxc6 {[%clk 01:30:23]} {[%emt
00:01:24]} 11. b3 {[%clk 01:08:38]} {[%emt 00:01:39]} g6 {[%clk 01:28:18]}
{[%emt 00:02:35]} 12. Bb2 {[%clk 01:04:58]} {[%emt 00:04:11]} Bg7 {[%clk
01:27:40]} {[%emt 00:01:07]} 13. Nc3 {[%clk 01:01:56]} {[%emt 00:03:32]} O-O
{[%clk 01:27:16]} {[%emt 00:00:54]} 14. Qd2 {[%clk 01:00:31]} {[%emt 00:01:56]}
Nd7 {[%clk 01:23:43]} {[%emt 00:04:02]} 15. Rad1 {[%clk 00:53:37]} {[%emt
00:07:24]} Rc8 {[%clk 01:21:25]} {[%emt 00:02:48]} 16. Nd5 {[%clk 00:43:18]}
{[%emt 00:10:50]} Bxb2 {[%clk 01:14:44]} {[%emt 00:07:10]} 17. Qxb2 {[%clk
00:43:43]} {[%emt 00:00:05]} Nb6 {[%clk 00:57:34]} {[%emt 00:17:39]} 18. e5
{[%clk 00:30:29]} {[%emt 00:13:46]} Nxd5 {[%clk 00:57:08]} {[%emt 00:00:56]} 19.
Rxd5 {[%clk 00:30:47]} {[%emt 00:00:12]} Rc5 {[%clk 00:47:11]} {[%emt
00:10:26]} 20. exd6 {[%clk 00:25:29]} {[%emt 00:05:48]} Rxd5 {[%clk 00:47:11]}
{[%emt 00:00:30]} 21. dxe7 {[%clk 00:24:39]} {[%emt 00:01:21]} Qxe7 {[%clk
00:47:07]} {[%emt 00:00:33]} 22. Qc3 {[%clk 00:22:23]} {[%emt 00:02:46]} Rd3
{[%clk 00:45:48]} {[%emt 00:01:49]} 0-1

[Event "Amateur Tournament (ATO)"]
[Site "Biel, Switzerland"]
[Date "2026.07.20"]
[Round "6.3"]
[White "Maitre, Fabien"]
[Black "Jud, Marc"]
[Result "1/2-1/2"]
[TimeControl "90+30+30sec/move"]
[WhiteTitle "-"]
[BlackTitle "-"]
[WhiteFideId "1315471"]
[BlackFideId "1309099"]
[WhiteElo "1834"]
[BlackElo "1991"]

1. d4 {[%clk 01:30:56]} {[%emt 00:00:02]} d5 {[%clk 01:30:53]} {[%emt
00:00:08]} 2. Nf3 {[%clk 01:31:10]} {[%emt 00:00:16]} Nf6 {[%clk 01:31:13]}
{[%emt 00:00:10]} 3. g3 {[%clk 01:31:31]} e6 {[%clk 01:31:29]} {[%emt
00:00:23]} 4. Bg2 {[%clk 01:31:55]} c5 {[%clk 01:31:48]} {[%emt 00:00:18]} 5.
O-O {[%clk 01:32:05]} Be7 {[%clk 01:31:59]} {[%emt 00:00:38]} 6. c4 {[%clk
01:31:59]} O-O {[%clk 01:31:29]} {[%emt 00:01:35]} 7. cxd5 {[%clk 01:29:57]}
Nxd5 {[%clk 01:31:50]} {[%emt 00:02:42]} 8. Nc3 {[%clk 01:27:01]} Nc6 {[%clk
01:30:43]} {[%emt 00:05:03]} 9. Nxd5 {[%clk 01:24:41]} Qxd5 {[%clk 01:29:46]}
{[%emt 00:04:17]} 10. Be3 {[%clk 01:22:43]} cxd4 {[%clk 01:23:22]} {[%emt
00:09:23]} 11. Nxd4 {[%clk 01:21:35]} Qd7 {[%clk 01:22:27]} {[%emt 00:03:01]}
12. Nxc6 {[%clk 01:21:11]} bxc6 {[%clk 01:22:53]} {[%emt 00:01:00]} 13. Qxd7
{[%clk 01:20:54]} Bxd7 {[%clk 01:23:18]} {[%emt 00:00:51]} 14. Rfd1 {[%clk
01:19:00]} Be8 {[%clk 01:16:54]} {[%emt 00:09:18]} 15. Rac1 {[%clk 01:17:21]}
Rc8 {[%clk 01:16:03]} {[%emt 00:03:30]} 16. Bc5 {[%clk 01:09:51]} Bxc5 {[%clk
01:11:10]} {[%emt 00:13:23]} 17. Rxc5 {[%clk 01:09:14]} Rc7 {[%clk 01:05:54]}
{[%emt 00:06:54]} 18. b4 {[%clk 00:59:16]} Rb7 {[%clk 00:54:07]} {[%emt
00:22:45]} 19. a3 {[%clk 00:59:01]} Rb6 {[%clk 00:53:00]} {[%emt 00:02:22]} 20.
Rdc1 {[%clk 00:51:46]} g6 {[%clk 00:44:58]} {[%emt 00:16:17]} 21. Bxc6 {[%clk
00:49:24]} Bxc6 {[%clk 00:44:04]} {[%emt 00:04:15]} 22. Rxc6 {[%clk 00:49:48]}
Rb7 {[%clk 00:43:49]} {[%emt 00:00:51]} 23. Rc7 {[%clk 00:47:41]} Rfb8 {[%clk
00:43:57]} {[%emt 00:02:58]} 24. R1c5 {[%clk 00:47:13]} Kf8 {[%clk 00:40:27]}
{[%emt 00:04:59]} 25. Rxb7 {[%clk 00:37:40]} Rxb7 {[%clk 00:40:50]} {[%emt
00:10:10]} 26. f4 {[%clk 00:35:49]} Ke7 {[%clk 00:38:21]} {[%emt 00:05:20]} 27.
Kf2 {[%clk 00:35:15]} Rd7 {[%clk 00:36:48]} {[%emt 00:03:07]} 28. Ke3 {[%clk
00:34:17]} f5 {[%clk 00:27:58]} {[%emt 00:10:48]} 29. a4 {[%clk 00:32:48]} h6
{[%clk 00:19:17]} {[%emt 00:11:10]} 30. Rc6 {[%clk 00:30:56]} g5 {[%clk
00:15:41]} {[%emt 00:06:28]} 31. fxg5 {[%clk 00:29:09]} hxg5 {[%clk 00:15:55]}
{[%emt 00:02:33]} 32. h4 {[%clk 00:23:50]} gxh4 {[%clk 00:14:25]} {[%emt
00:07:49]} 33. gxh4 {[%clk 00:24:03]} {[%emt 00:00:17]} Kf6 {[%clk 00:14:22]}
{[%emt 00:00:34]} 34. b5 {[%clk 00:23:47]} {[%emt 00:00:45]} Rh7 {[%clk
00:14:25]} {[%emt 00:00:26]} 35. Rc4 {[%clk 00:23:36]} {[%emt 00:00:41]} Ke5
{[%clk 00:14:09]} {[%emt 00:00:46]} 36. Rc5+ {[%clk 00:09:28]} {[%emt
00:14:39]} Kd6 {[%clk 00:11:59]} {[%emt 00:02:39]} 37. Rc6+ {[%clk 00:09:19]}
{[%emt 00:00:40]} Kd5 {[%clk 00:11:05]} {[%emt 00:01:24]} 38. Ra6 {[%clk
00:05:59]} {[%emt 00:03:51]} e5 {[%clk 00:08:14]} {[%emt 00:03:20]} 39. a5
{[%clk 00:01:54]} {[%emt 00:04:35]} f4+ {[%clk 00:05:56]} {[%emt 00:02:48]} 40.
Kf2 {[%clk 00:00:38]} {[%emt 00:01:46]} e4 {[%clk 00:02:05]} {[%emt 00:04:21]}
41. b6 {[%clk 00:27:38]} {[%emt 00:03:31]} axb6 {[%clk 00:30:15]} {[%emt
00:02:20]} 42. axb6 {[%clk 00:22:11]} {[%emt 00:05:57]} Kc6 {[%clk 00:26:23]}
{[%emt 00:04:21]} 43. Ra4 {[%clk 00:13:35]} {[%emt 00:09:07]} Kxb6 {[%clk
00:22:55]} {[%emt 00:03:58]} 44. Rxe4 {[%clk 00:13:40]} {[%emt 00:00:24]} Rxh4
{[%clk 00:23:06]} {[%emt 00:00:19]} 45. Kf3 {[%clk 00:13:12]} {[%emt 00:00:58]}
Kc5 {[%clk 00:23:02]} {[%emt 00:00:35]} 46. Rxf4 {[%clk 00:08:23]} {[%emt
00:05:19]} Rh2 {[%clk 00:21:21]} {[%emt 00:02:09]} 47. Rf5+ {[%clk 00:05:09]}
{[%emt 00:03:45]} Kd6 {[%clk 00:21:29]} {[%emt 00:00:22]} 48. e3 {[%clk
00:04:18]} {[%emt 00:01:22]} Ke6 {[%clk 00:21:37]} {[%emt 00:00:21]} 49. Ra5
{[%clk 00:02:55]} {[%emt 00:01:54]} Rh3+ {[%clk 00:20:55]} {[%emt 00:01:12]} 50.
Ke4 {[%clk 00:03:19]} {[%emt 00:00:03]} Rh4+ {[%clk 00:20:53]} {[%emt
00:00:34]} 51. Kd3 {[%clk 00:03:44]} {[%emt 00:00:05]} Rh1 {[%clk 00:20:38]}
{[%emt 00:00:45]} 52. Rb5 {[%clk 00:03:44]} {[%emt 00:00:31]} Rg1 {[%clk
00:20:24]} {[%emt 00:00:43]} 53. Kd4 {[%clk 00:03:59]} {[%emt 00:00:15]} Re1
{[%clk 00:20:02]} {[%emt 00:00:52]} 54. Rb6+ {[%clk 00:03:37]} {[%emt
00:00:52]} Kf5 {[%clk 00:19:54]} {[%emt 00:00:38]} 55. Rb5+ {[%clk 00:03:03]}
{[%emt 00:01:04]} Kf6 {[%clk 00:18:28]} {[%emt 00:01:56]} 56. Ke4 {[%clk
00:03:18]} {[%emt 00:00:15]} Rh1 {[%clk 00:16:40]} {[%emt 00:02:18]} 57. Rb6+
{[%clk 00:03:40]} {[%emt 00:00:09]} Ke7 {[%clk 00:16:58]} {[%emt 00:00:12]} 58.
Kd5 {[%clk 00:03:16]} {[%emt 00:00:53]} Rh5+ {[%clk 00:16:37]} {[%emt
00:00:52]} 59. Kd4 {[%clk 00:03:29]} {[%emt 00:00:17]} Rh1 {[%clk 00:15:31]}
{[%emt 00:01:36]} 60. e4 {[%clk 00:03:08]} {[%emt 00:00:51]} Rh5 {[%clk
00:15:21]} {[%emt 00:00:40]} 61. Ra6 {[%clk 00:02:41]} {[%emt 00:00:57]} Rg5
{[%clk 00:14:23]} {[%emt 00:01:27]} 62. Ke3 {[%clk 00:02:27]} {[%emt 00:00:45]}
Rh5 {[%clk 00:14:04]} {[%emt 00:00:48]} 63. Kf4 {[%clk 00:02:29]} {[%emt
00:00:28]} Rh4+ {[%clk 00:14:15]} {[%emt 00:00:19]} 64. Kf5 {[%clk 00:02:17]}
{[%emt 00:00:41]} Rh5+ {[%clk 00:14:07]} {[%emt 00:00:39]} 65. Kg4 {[%clk
00:02:06]} {[%emt 00:00:42]} Rh1 {[%clk 00:13:18]} {[%emt 00:01:19]} 66. Kf4
{[%clk 00:01:59]} {[%emt 00:00:36]} Rh4+ {[%clk 00:13:04]} {[%emt 00:00:43]} 67.
Ke3 {[%clk 00:02:14]} {[%emt 00:00:17]} Rh1 {[%clk 00:11:10]} {[%emt 00:02:24]}
68. Kd4 {[%clk 00:02:26]} {[%emt 00:00:18]} Rh5 {[%clk 00:10:57]} {[%emt
00:00:42]} 69. e5 {[%clk 00:02:46]} {[%emt 00:00:11]} Rh1 {[%clk 00:11:04]}
{[%emt 00:00:22]} 70. Rg6 {[%clk 00:02:15]} {[%emt 00:01:00]} Rd1+ {[%clk
00:10:54]} {[%emt 00:00:41]} 71. Ke4 {[%clk 00:02:21]} {[%emt 00:00:23]} Re1+
{[%clk 00:11:13]} {[%emt 00:00:12]} 72. Kf4 {[%clk 00:02:19]} {[%emt 00:00:32]}
Rf1+ {[%clk 00:11:30]} {[%emt 00:00:13]} 73. Ke3 {[%clk 00:02:06]} {[%emt
00:00:43]} Re1+ {[%clk 00:11:48]} {[%emt 00:00:12]} 74. Kd4 {[%clk 00:02:28]}
{[%emt 00:00:09]} Rd1+ {[%clk 00:12:09]} {[%emt 00:00:08]} 75. Kc5 {[%clk
00:02:15]} {[%emt 00:00:43]} Rc1+ {[%clk 00:12:11]} {[%emt 00:00:27]} 76. Kb6
{[%clk 00:02:22]} {[%emt 00:00:24]} Rb1+ {[%clk 00:11:44]} {[%emt 00:00:58]}
1/2-1/2

[Event "Amateur Tournament (ATO)"]
[Site "Biel, Switzerland"]
[Date "2026.07.20"]
[Round "6.4"]
[White "Hashem, Khaled"]
[Black "Pinelli, Gian"]
[Result "0-1"]
[TimeControl "90+30+30sec/move"]
[WhiteTitle "-"]
[BlackTitle "-"]
[WhiteFideId "10300201"]
[BlackFideId "1348710"]
[WhiteElo "1869"]
[BlackElo "1824"]

1. d4 {[%clk 01:23:53]} {[%emt 00:07:06]} Nf6 {[%clk 01:30:52]} {[%emt
00:00:08]} 2. Nf3 {[%clk 01:24:20]} {[%emt 00:00:03]} d5 {[%clk 01:31:14]}
{[%emt 00:00:08]} 3. g3 {[%clk 01:24:46]} {[%emt 00:00:05]} c5 {[%clk
01:31:00]} {[%emt 00:00:44]} 4. Bg2 {[%clk 01:25:11]} {[%emt 00:00:04]} Nc6
{[%clk 01:31:11]} {[%emt 00:00:19]} 5. O-O {[%clk 01:25:25]} {[%emt 00:00:17]}
Bf5 {[%clk 01:31:22]} {[%emt 00:00:19]} 6. dxc5 {[%clk 01:22:31]} {[%emt
00:03:24]} e6 {[%clk 01:31:27]} {[%emt 00:00:23]} 7. Nd4 {[%clk 01:21:55]}
{[%emt 00:01:07]} Nxd4 {[%clk 01:28:40]} {[%emt 00:03:18]} 8. Qxd4 {[%clk
01:22:13]} {[%emt 00:00:12]} Bxc2 {[%clk 01:27:37]} {[%emt 00:01:33]} 9. Na3
{[%clk 01:19:10]} {[%emt 00:03:33]} Bg6 {[%clk 01:26:42]} {[%emt 00:01:24]} 10.
Bf4 {[%clk 01:19:13]} {[%emt 00:00:27]} Qa5 {[%clk 01:24:15]} {[%emt 00:02:57]}
11. Rfc1 {[%clk 01:12:11]} {[%emt 00:07:32]} Rc8 {[%clk 01:23:50]} {[%emt
00:00:55]} 12. Be3 {[%clk 01:12:37]} {[%emt 00:00:05]} Nd7 {[%clk 01:19:31]}
{[%emt 00:04:49]} 13. c6 {[%clk 01:12:33]} {[%emt 00:00:33]} bxc6 {[%clk
01:17:23]} {[%emt 00:02:38]} 14. Qxa7 {[%clk 01:12:00]} {[%emt 00:01:03]} Qxa7
{[%clk 01:17:45]} {[%emt 00:00:09]} 15. Bxa7 {[%clk 01:12:29]} Bxa3 {[%clk
01:18:03]} {[%emt 00:00:12]} 16. bxa3 {[%clk 01:12:43]} {[%emt 00:00:16]} c5
{[%clk 01:18:26]} {[%emt 00:00:07]} 0-1

[Event "Amateur Tournament (ATO)"]
[Site "Biel, Switzerland"]
[Date "2026.07.20"]
[Round "6.5"]
[White "Zhou, Abigail"]
[Black "Alrefae, Ahmad"]
[Result "1-0"]
[TimeControl "90+30+30sec/move"]
[WhiteTitle "-"]
[BlackTitle "-"]
[WhiteFideId "39922081"]
[BlackFideId "10306510"]
[WhiteElo "1831"]
[BlackElo "1853"]

1. e4 {[%clk 01:30:58]} {[%emt 00:00:01]} c5 {[%clk 01:29:28]} {[%emt
00:01:32]} 2. Nf3 {[%clk 01:31:23]} {[%emt 00:00:06]} d6 {[%clk 01:29:54]}
{[%emt 00:00:03]} 3. d4 {[%clk 01:31:46]} {[%emt 00:00:07]} cxd4 {[%clk
01:30:20]} {[%emt 00:00:04]} 4. Nxd4 {[%clk 01:32:11]} {[%emt 00:00:06]} Nf6
{[%clk 01:30:45]} {[%emt 00:00:04]} 5. Nc3 {[%clk 01:32:33]} {[%emt 00:00:09]}
g6 {[%clk 01:31:10]} {[%emt 00:00:05]} 6. Be3 {[%clk 01:32:58]} {[%emt
00:00:05]} Bg7 {[%clk 01:31:35]} {[%emt 00:00:05]} 7. Be2 {[%clk 01:33:21]}
{[%emt 00:00:07]} Nc6 {[%clk 01:31:59]} {[%emt 00:00:06]} 8. O-O {[%clk
01:33:41]} {[%emt 00:00:10]} O-O {[%clk 01:32:26]} {[%emt 00:00:03]} 9. Qd2
{[%clk 01:33:58]} {[%emt 00:00:13]} a6 {[%clk 01:32:21]} {[%emt 00:00:35]} 10.
a4 {[%clk 01:34:06]} {[%emt 00:00:22]} Bd7 {[%clk 01:32:29]} {[%emt 00:00:21]}
11. f3 {[%clk 01:32:49]} {[%emt 00:01:48]} Rc8 {[%clk 01:29:40]} {[%emt
00:03:14]} 12. Nxc6 {[%clk 01:26:44]} {[%emt 00:06:39]} Bxc6 {[%clk 01:29:15]}
{[%emt 00:00:55]} 13. a5 {[%clk 01:27:05]} {[%emt 00:00:11]} Nd7 {[%clk
01:28:43]} {[%emt 00:01:00]} 14. Rfd1 {[%clk 01:22:30]} {[%emt 00:05:06]} Qc7
{[%clk 01:21:02]} {[%emt 00:08:11]} 15. Bf1 {[%clk 01:14:21]} {[%emt 00:08:39]}
Rfd8 {[%clk 00:58:34]} {[%emt 00:22:57]} 16. Ra3 {[%clk 01:05:39]} {[%emt
00:09:13]} e6 {[%clk 00:53:31]} {[%emt 00:05:33]} 17. Qf2 {[%clk 00:56:58]}
{[%emt 00:09:11]} h6 {[%clk 00:45:48]} {[%emt 00:08:12]} 18. b4 {[%clk
00:49:50]} {[%emt 00:07:38]} Kh7 {[%clk 00:35:49]} {[%emt 00:10:29]} 19. Bd4
{[%clk 00:39:55]} {[%emt 00:10:26]} Bxd4 {[%clk 00:31:45]} {[%emt 00:04:33]} 20.
Rxd4 {[%clk 00:36:01]} {[%emt 00:04:24]} Nf8 {[%clk 00:31:02]} {[%emt
00:01:13]} 21. Rd2 {[%clk 00:28:24]} {[%emt 00:08:07]} Qe7 {[%clk 00:29:53]}
{[%emt 00:01:40]} 22. Rb3 {[%clk 00:23:09]} {[%emt 00:05:46]} e5 {[%clk
00:27:43]} {[%emt 00:02:39]} 23. b5 {[%clk 00:19:21]} {[%emt 00:04:18]} axb5
{[%clk 00:28:02]} {[%emt 00:00:10]} 24. Bxb5 {[%clk 00:19:39]} {[%emt
00:00:12]} Ne6 {[%clk 00:26:38]} {[%emt 00:01:54]} 25. Bc4 {[%clk 00:17:39]}
{[%emt 00:02:30]} Nd4 {[%clk 00:25:12]} {[%emt 00:01:56]} 26. Rb6 {[%clk
00:17:13]} {[%emt 00:00:57]} Ra8 {[%clk 00:20:52]} {[%emt 00:04:50]} 27. Nd5
{[%clk 00:14:24]} {[%emt 00:03:19]} Bxd5 {[%clk 00:20:25]} {[%emt 00:00:56]} 28.
Bxd5 {[%clk 00:14:16]} {[%emt 00:00:08]} Rxa5 {[%clk 00:20:50]} {[%emt
00:00:05]} 29. h3 {[%clk 00:13:16]} {[%emt 00:02:00]} Ra1+ {[%clk 00:16:09]}
{[%emt 00:05:12]} 30. Kh2 {[%clk 00:13:32]} {[%emt 00:00:13]} Qg5 {[%clk
00:16:22]} {[%emt 00:00:17]} 31. f4 {[%clk 00:12:57]} {[%emt 00:01:06]} Qf6
{[%clk 00:11:17]} {[%emt 00:05:35]} 32. Rxb7 {[%clk 00:13:08]} {[%emt
00:00:19]} Rf8 {[%clk 00:11:24]} {[%emt 00:00:23]} 33. fxe5 {[%clk 00:12:19]}
{[%emt 00:01:19]} Qxe5+ {[%clk 00:11:37]} {[%emt 00:00:17]} 34. g3 {[%clk
00:12:39]} {[%emt 00:00:11]} Ne6 {[%clk 00:10:19]} {[%emt 00:01:47]} 35. Rxf7+
{[%clk 00:13:00]} {[%emt 00:00:09]} Ng7 {[%clk 00:07:26]} {[%emt 00:03:23]} 36.
Rxf8 {[%clk 00:13:06]} {[%emt 00:00:24]} h5 {[%clk 00:07:17]} {[%emt 00:00:39]}
37. Bg8+ {[%clk 00:13:15]} {[%emt 00:00:21]} Kh8 {[%clk 00:07:41]} {[%emt
00:00:06]} 38. Qf4 {[%clk 00:13:24]} {[%emt 00:00:21]} Nf5 {[%clk 00:07:05]}
{[%emt 00:01:07]} 39. Qxe5+ {[%clk 00:13:46]} {[%emt 00:00:07]} 1-0